[Event "Early-Titled-Tuesday-Blitz-October-17-2023"]
[Site "Chess.com"]
[Date "2023.10.17"]
[Round "2"]
[White "viktorgen2021"]
[Black "SaqoChess_Twitch"]
[Result "1-0"]
[WhiteElo "2405"]
[BlackElo "2614"]
[TimeControl "180+1"]
[EndTime "8:21:51 PDT"]
[Termination "viktorgen2021 won by checkmate"]

1. Nf3 {[%clk 0:02:53.8]} 1... d5 {[%clk 0:02:59.9]} 2. c4 {[%clk 0:02:53.3]}
2... e6 {[%clk 0:03:00.6]} 3. g3 {[%clk 0:02:53.1]} 3... Nf6 {[%clk 0:03:01.2]}
4. Bg2 {[%clk 0:02:53.7]} 4... Be7 {[%clk 0:03:01.3]} 5. O-O {[%clk 0:02:54.3]}
5... O-O {[%clk 0:03:01.9]} 6. b3 {[%clk 0:02:54.9]} 6... c5 {[%clk 0:03:01.6]}
7. Bb2 {[%clk 0:02:54.5]} 7... d4 {[%clk 0:03:02.1]} 8. b4 {[%clk 0:02:54.3]}
8... Nc6 {[%clk 0:02:57.8]} 9. bxc5 {[%clk 0:02:53.8]} 9... Bxc5 {[%clk
0:02:55.6]} 10. d3 {[%clk 0:02:54.1]} 10... e5 {[%clk 0:02:55.3]} 11. Ba3 {[%clk
0:02:52.8]} 11... Qe7 {[%clk 0:02:54.1]} 12. Bxc5 {[%clk 0:02:52.2]} 12... Qxc5
{[%clk 0:02:55]} 13. Nbd2 {[%clk 0:02:48.3]} 13... Nd7 {[%clk 0:02:53.1]} 14.
Nb3 {[%clk 0:02:48.4]} 14... Qd6 {[%clk 0:02:52.7]} 15. Nfd2 {[%clk 0:02:48.2]}
15... f5 {[%clk 0:02:49.2]} 16. Rc1 {[%clk 0:02:47.4]} 16... Qa3 {[%clk
0:02:38.9]} 17. e3 {[%clk 0:02:35.2]} 17... dxe3 {[%clk 0:02:36.3]} 18. fxe3
{[%clk 0:02:36]} 18... Nc5 {[%clk 0:02:30.3]} 19. Nb1 {[%clk 0:02:09.2]} 19...
Qb4 {[%clk 0:02:24.2]} 20. Nc3 {[%clk 0:02:08.6]} 20... Nxb3 {[%clk 0:02:19.7]}
21. Qxb3 {[%clk 0:02:07.5]} 21... Qc5 {[%clk 0:02:07.7]} 22. Nd5 {[%clk
0:02:06.7]} 22... Rb8 {[%clk 0:02:00.3]} 23. Kh1 {[%clk 0:02:06]} 23... Be6
{[%clk 0:02:00.1]} 24. Rfd1 {[%clk 0:01:48.3]} 24... Kh8 {[%clk 0:01:58.1]} 25.
d4 {[%clk 0:01:37.5]} 25... Qa5 {[%clk 0:01:35.7]} 26. dxe5 {[%clk 0:01:09.5]}
26... Nxe5 {[%clk 0:01:34]} 27. Qc3 {[%clk 0:01:09.7]} 27... Qxc3 {[%clk
0:01:31.6]} 28. Rxc3 {[%clk 0:01:10.2]} 28... Ng4 {[%clk 0:01:31.7]} 29. Kg1
{[%clk 0:01:08.9]} 29... Rbc8 {[%clk 0:01:21.8]} 30. Nf4 {[%clk 0:01:01.7]}
30... Bf7 {[%clk 0:01:13.2]} 31. c5 {[%clk 0:00:58.5]} 31... b6 {[%clk
0:01:11.6]} 32. c6 {[%clk 0:00:58.6]} 32... a5 {[%clk 0:01:06.4]} 33. c7 {[%clk
0:00:55.1]} 33... Nxe3 {[%clk 0:00:53.4]} 34. Rxe3 {[%clk 0:00:52.6]} 34... Rxc7
{[%clk 0:00:53.5]} 35. Bd5 {[%clk 0:00:46.4]} 35... g5 {[%clk 0:00:51.9]} 36.
Ne6 {[%clk 0:00:38.5]} 36... Bxe6 {[%clk 0:00:44.9]} 37. Rxe6 {[%clk 0:00:36.7]}
37... Rd8 {[%clk 0:00:33.3]} 38. Bb3 {[%clk 0:00:36]} 38... Rxd1+ {[%clk
0:00:31.8]} 39. Bxd1 {[%clk 0:00:36.9]} 39... Rc1 {[%clk 0:00:32.2]} 40. Rd6
{[%clk 0:00:37.3]} 40... Ra1 {[%clk 0:00:30.8]} 41. Rd2 {[%clk 0:00:33.2]} 41...
b5 {[%clk 0:00:21.1]} 42. Kf2 {[%clk 0:00:33]} 42... b4 {[%clk 0:00:21.7]} 43.
Bb3 {[%clk 0:00:32]} 43... f4 {[%clk 0:00:20.4]} 44. gxf4 {[%clk 0:00:18.7]}
44... gxf4 {[%clk 0:00:21.3]} 45. Kf3 {[%clk 0:00:19.2]} 45... Rf1+ {[%clk
0:00:19.6]} 46. Rf2 {[%clk 0:00:19]} 46... Ra1 {[%clk 0:00:12.8]} 47. Kxf4
{[%clk 0:00:18.2]} 47... Kg7 {[%clk 0:00:13.7]} 48. Ke5 {[%clk 0:00:17.4]} 48...
Kg6 {[%clk 0:00:13.6]} 49. Kd6 {[%clk 0:00:17.3]} 49... Rc1 {[%clk 0:00:13.8]}
50. Bc2+ {[%clk 0:00:13.2]} 50... Kg7 {[%clk 0:00:11.3]} 51. Kc5 {[%clk
0:00:13.4]} 51... Re1 {[%clk 0:00:07.3]} 52. Kb6 {[%clk 0:00:11]} 52... Re5
{[%clk 0:00:07.6]} 53. Bb3 {[%clk 0:00:11]} 53... h5 {[%clk 0:00:07.3]} 54. Rd2
{[%clk 0:00:10.3]} 54... h4 {[%clk 0:00:07.5]} 55. Bd5 {[%clk 0:00:10.6]} 55...
a4 {[%clk 0:00:07]} 56. Kb5 {[%clk 0:00:10.8]} 56... b3 {[%clk 0:00:07.5]} 57.
axb3 {[%clk 0:00:09.9]} 57... axb3 {[%clk 0:00:08.4]} 58. Kc4 {[%clk 0:00:10.6]}
58... Re3 {[%clk 0:00:07.6]} 59. Kd4 {[%clk 0:00:05.8]} 59... Re1 {[%clk
0:00:04.6]} 60. Bxb3 {[%clk 0:00:05.5]} 60... Kf6 {[%clk 0:00:05]} 61. Bd5
{[%clk 0:00:04.8]} 61... Kf5 {[%clk 0:00:05.5]} 62. Rg2 {[%clk 0:00:04.6]} 62...
Kf4 {[%clk 0:00:05.7]} 63. Rf2+ {[%clk 0:00:04.5]} 63... Kg4 {[%clk 0:00:05.8]}
64. Be4 {[%clk 0:00:05]} 64... Rd1+ {[%clk 0:00:04.5]} 65. Ke5 {[%clk
0:00:05.3]} 65... Kg5 {[%clk 0:00:04.9]} 66. Rg2+ {[%clk 0:00:05.2]} 66... Kh6
{[%clk 0:00:04.4]} 67. Kf4 {[%clk 0:00:05.9]} 67... Rd8 {[%clk 0:00:03.6]} 68.
Bf5 {[%clk 0:00:05.9]} 68... Rd4+ {[%clk 0:00:03.7]} 69. Be4 {[%clk 0:00:06.4]}
69... Rd8 {[%clk 0:00:04.3]} 70. Ra2 {[%clk 0:00:06.1]} 70... Rf8+ {[%clk
0:00:04.5]} 71. Bf5 {[%clk 0:00:06.5]} 71... Kh5 {[%clk 0:00:04.9]} 72. Ra5
{[%clk 0:00:06.6]} 72... Rd8 {[%clk 0:00:03.9]} 73. Bg4+ {[%clk 0:00:06.3]}
73... Kh6 {[%clk 0:00:04.4]} 74. Rh5+ {[%clk 0:00:06.5]} 74... Kg6 {[%clk
0:00:05.1]} 75. Rxh4 {[%clk 0:00:07.4]} 75... Rd4+ {[%clk 0:00:05.6]} 76. Kg3
{[%clk 0:00:07.8]} 76... Rd3+ {[%clk 0:00:06.2]} 77. Bf3 {[%clk 0:00:08.3]}
77... Ra3 {[%clk 0:00:06.8]} 78. Rg4+ {[%clk 0:00:08.7]} 78... Kf5 {[%clk
0:00:06.7]} 79. Rf4+ {[%clk 0:00:09.6]} 79... Kg5 {[%clk 0:00:07]} 80. Rf8
{[%clk 0:00:10.1]} 80... Kg6 {[%clk 0:00:07.3]} 81. h4 {[%clk 0:00:10.6]} 81...
Ra1 {[%clk 0:00:06.5]} 82. Rf4 {[%clk 0:00:11.5]} 82... Rg1+ {[%clk 0:00:06.4]}
83. Bg2 {[%clk 0:00:12.1]} 83... Ra1 {[%clk 0:00:07.3]} 84. Kg4 {[%clk 0:00:11]}
84... Ra5 {[%clk 0:00:07.1]} 85. Be4+ {[%clk 0:00:10.9]} 85... Kh6 {[%clk
0:00:07.2]} 86. Rf6+ {[%clk 0:00:11.1]} 86... Kg7 {[%clk 0:00:07.2]} 87. Re6
{[%clk 0:00:11.7]} 87... Ra4 {[%clk 0:00:07]} 88. Re5 {[%clk 0:00:11.5]} 88...
Ra1 {[%clk 0:00:07.2]} 89. Kh5 {[%clk 0:00:09.3]} 89... Re1 {[%clk 0:00:06.1]}
90. Rg5+ {[%clk 0:00:08.9]} 90... Kf6 {[%clk 0:00:06.4]} 91. Bh7 {[%clk
0:00:07.8]} 91... Re7 {[%clk 0:00:06.7]} 92. Kh6 {[%clk 0:00:06.8]} 92... Re3
{[%clk 0:00:04.6]} 93. h5 {[%clk 0:00:06.3]} 93... Rh3 {[%clk 0:00:05]} 94. Rg6+
{[%clk 0:00:06.8]} 94... Kf7 {[%clk 0:00:04.9]} 95. Rg1 {[%clk 0:00:07.4]} 95...
Kf8 {[%clk 0:00:05.4]} 96. Rf1+ {[%clk 0:00:07.8]} 96... Ke7 {[%clk 0:00:05.2]}
97. Bg6 {[%clk 0:00:07.6]} 97... Re3 {[%clk 0:00:05.2]} 98. Kg7 {[%clk
0:00:07.8]} 98... Re6 {[%clk 0:00:04.4]} 99. h6 {[%clk 0:00:08.2]} 99... Kd6
{[%clk 0:00:05.3]} 100. h7 {[%clk 0:00:08.7]} 100... Re7+ {[%clk 0:00:06.2]}
101. Bf7 {[%clk 0:00:08.5]} 101... Re5 {[%clk 0:00:06.2]} 102. h8=Q {[%clk
0:00:08.8]} 102... Rg5+ {[%clk 0:00:06.9]} 103. Bg6 {[%clk 0:00:09.4]} 103...
Re5 {[%clk 0:00:07]} 104. Qf8+ {[%clk 0:00:09.7]} 104... Kd5 {[%clk 0:00:07.2]}
105. Rd1+ {[%clk 0:00:09.9]} 105... Kc4 {[%clk 0:00:06.9]} 106. Bf7+ {[%clk
0:00:10.2]} 106... Kc3 {[%clk 0:00:06.8]} 107. Qc8+ {[%clk 0:00:09.7]} 107...
Kb4 {[%clk 0:00:06.4]} 108. Rb1+ {[%clk 0:00:09.2]} 108... Ka3 {[%clk 0:00:06]}
109. Qa8+ {[%clk 0:00:09.1]} 109... Ra5 {[%clk 0:00:06.9]} 110. Qxa5# {[%clk
0:00:09.3]} 1-0

[Event "Early-Titled-Tuesday-Blitz-October-17-2023"]
[Site "Chess.com"]
[Date "2023.10.17"]
[Round "3"]
[White "subham777"]
[Black "lolo9292"]
[Result "1-0"]
[WhiteElo "2531"]
[BlackElo "2171"]
[TimeControl "180+1"]
[EndTime "8:23:19 PDT"]
[Termination "subham777 won by resignation"]

1. e4 {[%clk 0:03:00.9]} 1... e5 {[%clk 0:02:59.4]} 2. Nf3 {[%clk 0:02:58.4]}
2... Nc6 {[%clk 0:02:58.8]} 3. Bc4 {[%clk 0:02:57.5]} 3... Bc5 {[%clk
0:02:57.4]} 4. c3 {[%clk 0:02:57.5]} 4... Nf6 {[%clk 0:02:56.6]} 5. d3 {[%clk
0:02:57.6]} 5... d6 {[%clk 0:02:55.6]} 6. Nbd2 {[%clk 0:02:57.7]} 6... O-O
{[%clk 0:02:49.9]} 7. Nf1 {[%clk 0:02:56.1]} 7... Bb6 {[%clk 0:02:45.4]} 8. Ng3
{[%clk 0:02:54.8]} 8... Ne7 {[%clk 0:02:45.3]} 9. Bg5 {[%clk 0:02:54.4]} 9...
Ng6 {[%clk 0:02:45.1]} 10. Qd2 {[%clk 0:02:48]} 10... c6 {[%clk 0:02:45]} 11.
Nh5 {[%clk 0:02:47.7]} 11... Be6 {[%clk 0:02:36.8]} 12. Bxf6 {[%clk 0:02:47.3]}
12... gxf6 {[%clk 0:02:37.7]} 13. Qh6 {[%clk 0:02:47.1]} 1-0

[Event "Early-Titled-Tuesday-Blitz-October-17-2023"]
[Site "Chess.com"]
[Date "2023.10.17"]
[Round "3"]
[White "FunnyDuck66"]
[Black "KVAIDAN"]
[Result "0-1"]
[WhiteElo "2475"]
[BlackElo "2268"]
[TimeControl "180+1"]
[EndTime "8:25:37 PDT"]
[Termination "KVAIDAN won by resignation"]

1. d4 {[%clk 0:02:57.7]} 1... e6 {[%clk 0:02:57]} 2. c4 {[%clk 0:02:56.7]} 2...
f5 {[%clk 0:02:57.4]} 3. Nc3 {[%clk 0:02:55.4]} 3... Nf6 {[%clk 0:02:57.5]} 4.
Nf3 {[%clk 0:02:50]} 4... Bb4 {[%clk 0:02:57]} 5. Bf4 {[%clk 0:02:45.4]} 5...
Ne4 {[%clk 0:02:56.7]} 6. Qc2 {[%clk 0:02:44.4]} 6... O-O {[%clk 0:02:55.7]} 7.
h4 {[%clk 0:02:41.9]} 7... b6 {[%clk 0:02:56]} 8. e3 {[%clk 0:02:40.4]} 8... Bb7
{[%clk 0:02:55.9]} 9. Bd3 {[%clk 0:02:39.6]} 9... d6 {[%clk 0:02:55.9]} 10. Qb3
{[%clk 0:02:31.3]} 10... a5 {[%clk 0:02:53.3]} 11. Bxe4 {[%clk 0:02:17.3]} 11...
Bxe4 {[%clk 0:02:50.4]} 12. Ng5 {[%clk 0:02:16]} 12... Nc6 {[%clk 0:02:46]} 13.
Nxe6 {[%clk 0:02:13.1]} 13... Qe7 {[%clk 0:02:46.2]} 14. Nxf8 {[%clk 0:02:13.1]}
14... Rxf8 {[%clk 0:02:44.7]} 15. a3 {[%clk 0:02:11.4]} 15... Nxd4 {[%clk
0:02:38.6]} 16. exd4 {[%clk 0:01:56.1]} 16... Bc2+ {[%clk 0:02:37.9]} 17. Kd2
{[%clk 0:01:48.4]} 17... Bxb3 {[%clk 0:02:37.7]} 18. axb4 {[%clk 0:01:48.5]}
18... axb4 {[%clk 0:02:38.2]} 19. Nd5 {[%clk 0:01:49.4]} 19... Qe4 {[%clk
0:02:35.2]} 20. Rac1 {[%clk 0:01:03.7]} 20... Qxd4+ {[%clk 0:02:29.7]} 21. Ke2
{[%clk 0:01:03.8]} 21... Bxc4+ {[%clk 0:02:26.2]} 0-1

[Event "Early-Titled-Tuesday-Blitz-October-17-2023"]
[Site "Chess.com"]
[Date "2023.10.17"]
[Round "3"]
[White "Ramosha"]
[Black "stasOR4ik"]
[Result "1-0"]
[WhiteElo "2630"]
[BlackElo "2454"]
[TimeControl "180+1"]
[EndTime "8:25:40 PDT"]
[Termination "Ramosha won by resignation"]

1. e4 {[%clk 0:03:00.9]} 1... c6 {[%clk 0:02:38.4]} 2. d4 {[%clk 0:02:59.6]}
2... d5 {[%clk 0:02:39]} 3. e5 {[%clk 0:03:00]} 3... c5 {[%clk 0:02:38.1]} 4.
dxc5 {[%clk 0:02:59.8]} 4... e6 {[%clk 0:02:37.7]} 5. Be3 {[%clk 0:02:59.3]}
5... Nc6 {[%clk 0:02:35.1]} 6. Nf3 {[%clk 0:02:58.1]} 6... Qc7 {[%clk
0:02:29.4]} 7. Bb5 {[%clk 0:02:54.5]} 7... Ne7 {[%clk 0:02:27.5]} 8. O-O {[%clk
0:02:32]} 8... Bd7 {[%clk 0:02:24.2]} 9. Qe2 {[%clk 0:02:25.3]} 9... O-O-O
{[%clk 0:02:11]} 10. c3 {[%clk 0:02:23.6]} 10... Nxe5 {[%clk 0:02:07.8]} 11.
Nxe5 {[%clk 0:02:23.3]} 11... Qxe5 {[%clk 0:02:07.7]} 12. Bxd7+ {[%clk
0:02:22.8]} 12... Rxd7 {[%clk 0:02:08]} 13. Nd2 {[%clk 0:02:23.3]} 13... Nf5
{[%clk 0:02:00.4]} 14. Nf3 {[%clk 0:02:23]} 14... Qe4 {[%clk 0:01:58.2]} 15. b4
{[%clk 0:02:16.8]} 15... Nxe3 {[%clk 0:01:48.6]} 16. fxe3 {[%clk 0:02:16.9]}
16... Qc4 {[%clk 0:01:39.7]} 17. Qxc4 {[%clk 0:02:14.6]} 17... dxc4 {[%clk
0:01:39.7]} 18. Ne5 {[%clk 0:02:14.7]} 18... Rd3 {[%clk 0:01:37.8]} 19. Nxd3
{[%clk 0:02:12.2]} 19... cxd3 {[%clk 0:01:38.7]} 20. Rxf7 {[%clk 0:02:07.4]}
20... g6 {[%clk 0:01:29.4]} 21. Rd1 {[%clk 0:02:06]} 21... Bh6 {[%clk
0:01:25.5]} 22. Rxd3 {[%clk 0:02:04.9]} 1-0

[Event "Early-Titled-Tuesday-Blitz-October-17-2023"]
[Site "Chess.com"]
[Date "2023.10.17"]
[Round "3"]
[White "wannabe2700"]
[Black "viktorgen2021"]
[Result "1-0"]
[WhiteElo "2642"]
[BlackElo "2402"]
[TimeControl "180+1"]
[EndTime "8:25:56 PDT"]
[Termination "wannabe2700 won by resignation"]

1. e4 {[%clk 0:03:00.9]} 1... c6 {[%clk 0:02:55.2]} 2. d4 {[%clk 0:03:00]} 2...
d5 {[%clk 0:02:49.4]} 3. e5 {[%clk 0:03:00.3]} 3... Bf5 {[%clk 0:02:48.1]} 4.
Nf3 {[%clk 0:03:00.1]} 4... e6 {[%clk 0:02:48]} 5. Be2 {[%clk 0:03:00.5]} 5...
Nd7 {[%clk 0:02:45.5]} 6. O-O {[%clk 0:02:59.9]} 6... h6 {[%clk 0:02:46]} 7. a4
{[%clk 0:02:57]} 7... a6 {[%clk 0:02:45.9]} 8. a5 {[%clk 0:02:53.9]} 8... Ne7
{[%clk 0:02:46.2]} 9. c3 {[%clk 0:02:53.7]} 9... Nc8 {[%clk 0:02:46.3]} 10. b4
{[%clk 0:02:50.4]} 10... Be7 {[%clk 0:02:45.9]} 11. Nbd2 {[%clk 0:02:49.2]}
11... O-O {[%clk 0:02:45.5]} 12. Nb3 {[%clk 0:02:49.3]} 12... Na7 {[%clk
0:02:46]} 13. Be3 {[%clk 0:02:45.3]} 13... Nb5 {[%clk 0:02:44.9]} 14. Qd2 {[%clk
0:02:43.3]} 14... Kh7 {[%clk 0:02:38.6]} 15. Bd3 {[%clk 0:02:34.8]} 15... Bxd3
{[%clk 0:02:37.2]} 16. Qxd3+ {[%clk 0:02:35.7]} 16... Kg8 {[%clk 0:02:37.3]} 17.
Rae1 {[%clk 0:02:14]} 17... f5 {[%clk 0:02:28.3]} 18. exf6 {[%clk 0:02:13.4]}
18... Nxf6 {[%clk 0:02:28.3]} 19. Nc5 {[%clk 0:01:59.7]} 19... Bxc5 {[%clk
0:02:24.8]} 20. dxc5 {[%clk 0:02:00.6]} 20... Ne4 {[%clk 0:02:14.7]} 21. Bd4
{[%clk 0:02:00.5]} 21... Qe8 {[%clk 0:02:09.9]} 22. Ne5 {[%clk 0:01:57.8]} 22...
Qh5 {[%clk 0:02:06.6]} 23. f3 {[%clk 0:01:56.1]} 23... Nf6 {[%clk 0:02:00.3]}
24. Ng6 {[%clk 0:01:55.2]} 24... Rfe8 {[%clk 0:01:57.6]} 25. g4 {[%clk
0:01:52.9]} 25... Qh3 {[%clk 0:01:48.1]} 26. Nf4 {[%clk 0:01:45.4]} 26... Qh4
{[%clk 0:01:46.8]} 27. Bf2 {[%clk 0:01:45.2]} 27... Qg5 {[%clk 0:01:45.5]} 28.
Nh3 {[%clk 0:01:45.2]} 1-0

[Event "Early-Titled-Tuesday-Blitz-October-17-2023"]
[Site "Chess.com"]
[Date "2023.10.17"]
[Round "3"]
[White "Masterbeaterr"]
[Black "Witty_Alien"]
[Result "0-1"]
[WhiteElo "2427"]
[BlackElo "2250"]
[TimeControl "180+1"]
[EndTime "8:25:59 PDT"]
[Termination "Witty_Alien won by resignation"]

1. d4 {[%clk 0:03:00.9]} 1... e5 {[%clk 0:02:57.4]} 2. dxe5 {[%clk 0:02:59.7]}
2... d6 {[%clk 0:02:57.8]} 3. exd6 {[%clk 0:02:58.9]} 3... Bxd6 {[%clk
0:02:58.7]} 4. Nf3 {[%clk 0:02:57.4]} 4... Nf6 {[%clk 0:02:57.6]} 5. e3 {[%clk
0:02:53.5]} 5... Nc6 {[%clk 0:02:57.2]} 6. Be2 {[%clk 0:02:53.9]} 6... Bg4
{[%clk 0:02:56.2]} 7. O-O {[%clk 0:02:53.7]} 7... Qd7 {[%clk 0:02:56.5]} 8. b3
{[%clk 0:02:48.8]} 8... O-O-O {[%clk 0:02:56.1]} 9. Bb2 {[%clk 0:02:49.4]} 9...
Kb8 {[%clk 0:02:56]} 10. Nc3 {[%clk 0:02:47]} 10... Qf5 {[%clk 0:02:31.8]} 11.
Nb5 {[%clk 0:02:36.2]} 11... Bxf3 {[%clk 0:01:13.5]} 12. Nxd6 {[%clk 0:02:32.7]}
12... Rxd6 {[%clk 0:01:12.6]} 13. Qe1 {[%clk 0:02:23.2]} 13... Bxg2 {[%clk
0:00:47]} 14. Kxg2 {[%clk 0:02:22.1]} 14... Ne4 {[%clk 0:00:46.6]} 15. f4 {[%clk
0:02:16.2]} 15... Rg6+ {[%clk 0:00:45.1]} 16. Kh1 {[%clk 0:02:16.8]} 16... Qh3
{[%clk 0:00:44.1]} 17. Bf3 {[%clk 0:02:14.2]} 17... Ng3+ {[%clk 0:00:42.5]} 0-1

[Event "Early-Titled-Tuesday-Blitz-October-17-2023"]
[Site "Chess.com"]
[Date "2023.10.17"]
[Round "3"]
[White "santosalberto1987"]
[Black "DarZay"]
[Result "1-0"]
[WhiteElo "2438"]
[BlackElo "2218"]
[TimeControl "180+1"]
[EndTime "8:26:35 PDT"]
[Termination "santosalberto1987 won by resignation"]

1. e4 {[%clk 0:03:00.2]} 1... c5 {[%clk 0:02:57]} 2. Nf3 {[%clk 0:03:00.2]} 2...
Nc6 {[%clk 0:02:56.8]} 3. Nc3 {[%clk 0:02:59.3]} 3... Nd4 {[%clk 0:02:52.7]} 4.
Bc4 {[%clk 0:02:56.4]} 4... e6 {[%clk 0:02:43.2]} 5. O-O {[%clk 0:02:55.9]} 5...
d6 {[%clk 0:02:41.2]} 6. d3 {[%clk 0:02:50.9]} 6... Bd7 {[%clk 0:02:37.7]} 7.
Nxd4 {[%clk 0:02:50.2]} 7... cxd4 {[%clk 0:02:34.6]} 8. Ne2 {[%clk 0:02:50.7]}
8... e5 {[%clk 0:02:34.7]} 9. f4 {[%clk 0:02:50.8]} 9... Nf6 {[%clk 0:02:29.3]}
10. c3 {[%clk 0:02:48.8]} 10... dxc3 {[%clk 0:02:28.2]} 11. Nxc3 {[%clk
0:02:49.7]} 11... Qb6+ {[%clk 0:02:24.6]} 12. Kh1 {[%clk 0:02:49.5]} 12... Be7
{[%clk 0:02:15.8]} 13. f5 {[%clk 0:02:44.8]} 13... Rf8 {[%clk 0:02:13.6]} 14.
Bg5 {[%clk 0:02:45.1]} 14... Bc6 {[%clk 0:02:12]} 15. Rc1 {[%clk 0:02:41]} 15...
O-O-O {[%clk 0:01:55.2]} 16. b4 {[%clk 0:02:26.5]} 16... Kb8 {[%clk 0:01:32.2]}
17. b5 {[%clk 0:02:24.2]} 17... Bd7 {[%clk 0:01:30.9]} 18. a4 {[%clk 0:02:16.4]}
18... d5 {[%clk 0:01:20.9]} 19. Bxf6 {[%clk 0:02:13.6]} 19... Bxf6 {[%clk
0:01:17.4]} 20. Nxd5 {[%clk 0:02:13.7]} 20... Qd6 {[%clk 0:01:16.9]} 21. a5
{[%clk 0:02:08.5]} 21... Bg5 {[%clk 0:01:13.8]} 22. Rc2 {[%clk 0:02:04.7]} 22...
g6 {[%clk 0:01:13.1]} 23. f6 {[%clk 0:02:03.2]} 23... Be6 {[%clk 0:01:12.6]} 24.
b6 {[%clk 0:02:03]} 24... Bxd5 {[%clk 0:01:12.2]} 25. Bxd5 {[%clk 0:02:02]}
25... axb6 {[%clk 0:01:10.8]} 26. axb6 {[%clk 0:02:02.1]} 26... Qxb6 {[%clk
0:01:10.7]} 27. Qa1 {[%clk 0:02:00]} 27... Bxf6 {[%clk 0:00:57.9]} 28. Rb1
{[%clk 0:01:59.5]} 1-0

[Event "Early-Titled-Tuesday-Blitz-October-17-2023"]
[Site "Chess.com"]
[Date "2023.10.17"]
[Round "3"]
[White "cristiano78"]
[Black "Rital44"]
[Result "0-1"]
[WhiteElo "2252"]
[BlackElo "2488"]
[TimeControl "180+1"]
[EndTime "8:26:39 PDT"]
[Termination "Rital44 won by resignation"]

1. d4 {[%clk 0:03:00]} 1... f5 {[%clk 0:02:59.9]} 2. c4 {[%clk 0:02:57.6]} 2...
Nf6 {[%clk 0:03:00.1]} 3. Nf3 {[%clk 0:02:57.3]} 3... g6 {[%clk 0:03:00.7]} 4.
Nc3 {[%clk 0:02:57.5]} 4... Bg7 {[%clk 0:03:01.3]} 5. g3 {[%clk 0:02:58.1]} 5...
O-O {[%clk 0:03:01.8]} 6. Bg2 {[%clk 0:02:58.7]} 6... d6 {[%clk 0:03:02.6]} 7.
O-O {[%clk 0:02:59.2]} 7... c6 {[%clk 0:03:03.4]} 8. b3 {[%clk 0:02:59.6]} 8...
Qc7 {[%clk 0:03:02.7]} 9. Ba3 {[%clk 0:02:59.2]} 9... Qa5 {[%clk 0:02:57.8]} 10.
Bb2 {[%clk 0:02:58.6]} 10... e5 {[%clk 0:02:58.5]} 11. dxe5 {[%clk 0:02:55.7]}
11... dxe5 {[%clk 0:02:58.8]} 12. a3 {[%clk 0:02:56.4]} 12... Rd8 {[%clk
0:02:46.9]} 13. Qc2 {[%clk 0:02:56]} 13... Na6 {[%clk 0:02:47.1]} 14. b4 {[%clk
0:02:55.3]} 14... Qc7 {[%clk 0:02:46.8]} 15. Rfd1 {[%clk 0:02:54]} 15... Be6
{[%clk 0:02:45]} 16. Rxd8+ {[%clk 0:02:52.5]} 16... Rxd8 {[%clk 0:02:44.8]} 17.
Rd1 {[%clk 0:02:51.7]} 17... e4 {[%clk 0:02:39.7]} 18. Rxd8+ {[%clk 0:02:45.9]}
18... Qxd8 {[%clk 0:02:39.4]} 19. Ng5 {[%clk 0:02:46]} 19... Bc8 {[%clk
0:02:25.2]} 20. h4 {[%clk 0:02:39.8]} 20... h6 {[%clk 0:02:25]} 21. Nh3 {[%clk
0:02:39.2]} 21... Ng4 {[%clk 0:02:16.1]} 22. Nd1 {[%clk 0:02:35.8]} 22... Bxb2
{[%clk 0:02:03.6]} 23. Nxb2 {[%clk 0:02:35.3]} 23... Qd4 {[%clk 0:02:03.6]} 24.
e3 {[%clk 0:02:32.9]} 24... Qf6 {[%clk 0:01:54.1]} 25. c5 {[%clk 0:02:27.4]}
25... Be6 {[%clk 0:01:50.9]} 26. Bf1 {[%clk 0:02:23.3]} 26... Ne5 {[%clk
0:01:48.8]} 27. Nf4 {[%clk 0:02:17.7]} 27... Bf7 {[%clk 0:01:47.1]} 28. Nd1
{[%clk 0:01:44.4]} 28... g5 {[%clk 0:01:37.5]} 29. hxg5 {[%clk 0:01:43.1]} 29...
hxg5 {[%clk 0:01:38.4]} 30. Nh3 {[%clk 0:01:41.3]} 30... g4 {[%clk 0:01:32.2]}
31. Nf4 {[%clk 0:01:27.6]} 31... Nf3+ {[%clk 0:01:31.7]} 32. Kg2 {[%clk
0:01:27]} 32... Ne1+ {[%clk 0:01:31.5]} 0-1

[Event "Early-Titled-Tuesday-Blitz-October-17-2023"]
[Site "Chess.com"]
[Date "2023.10.17"]
[Round "3"]
[White "Juicy_Fork"]
[Black "pinguino120"]
[Result "1-0"]
[WhiteElo "2420"]
[BlackElo "2202"]
[TimeControl "180+1"]
[EndTime "8:26:39 PDT"]
[Termination "Juicy_Fork won by resignation"]

1. e4 {[%clk 0:02:52.7]} 1... c5 {[%clk 0:02:59.7]} 2. Nf3 {[%clk 0:02:52.2]}
2... d6 {[%clk 0:03:00]} 3. d4 {[%clk 0:02:51.1]} 3... cxd4 {[%clk 0:03:00.9]}
4. Nxd4 {[%clk 0:02:52]} 4... Nf6 {[%clk 0:03:00.3]} 5. Nc3 {[%clk 0:02:51.5]}
5... a6 {[%clk 0:03:00.3]} 6. Bd3 {[%clk 0:02:47.8]} 6... e5 {[%clk 0:02:56.7]}
7. Nde2 {[%clk 0:02:47.5]} 7... Nc6 {[%clk 0:02:50.6]} 8. O-O {[%clk 0:02:46.4]}
8... Nb4 {[%clk 0:02:49.7]} 9. h3 {[%clk 0:02:43.7]} 9... Be6 {[%clk 0:02:42]}
10. f4 {[%clk 0:02:43.6]} 10... exf4 {[%clk 0:02:23.6]} 11. Nxf4 {[%clk
0:02:44.5]} 11... Be7 {[%clk 0:02:21.6]} 12. Be3 {[%clk 0:02:43.6]} 12... O-O
{[%clk 0:02:19.9]} 13. Qe2 {[%clk 0:02:41.1]} 13... Nxd3 {[%clk 0:02:13.9]} 14.
cxd3 {[%clk 0:02:42]} 14... d5 {[%clk 0:02:09.4]} 15. e5 {[%clk 0:02:26.6]}
15... d4 {[%clk 0:02:02.3]} 16. exf6 {[%clk 0:02:18.4]} 16... Bxf6 {[%clk
0:02:03.2]} 17. Nh5 {[%clk 0:01:55]} 17... Be7 {[%clk 0:01:02.8]} 18. Bh6 {[%clk
0:01:50]} 18... gxh6 {[%clk 0:01:00.4]} 19. Qe5 {[%clk 0:01:49.1]} 19... f6
{[%clk 0:00:39.1]} 20. Qxe6+ {[%clk 0:01:49]} 20... Rf7 {[%clk 0:00:39.7]} 21.
Nd5 {[%clk 0:01:46.8]} 1-0